bitfinex/quotes_BTCUSD_20250414
["timestamp","ask_amount","ask_price","bid_price","bid_amount"]
[1744604309011,0.14344,84455.0,84454.0,0.20585633]
[1744604309215,0.0008448,84461.0,84460.0,0.189438]
[1744604309627,0.0008448,84461.0,84460.0,0.20583895]
[1744604310736,0.0008448,84461.0,84460.0,0.01640095]
[1744604310934,0.0008448,84461.0,84459.0,0.189438]
[1744604311135,0.0008448,84461.0,84460.0,0.01639851]
[1744604311344,0.0018448,84461.0,84460.0,0.01639851]
[1744604312195,0.0018448,84461.0,84459.0,0.001]
[1744604312391,0.0008448,84461.0,84460.0,0.01640095]
[1744604313998,0.0008448,84461.0,84460.0,0.15178334]
[1744604314321,0.0008448,84461.0,84460.0,0.20058334]
[1744604314580,0.0008448,84461.0,84460.0,0.20295102]
[1744604315079,0.0008448,84461.0,84460.0,0.58988334]
[1744604316038,0.0008448,84461.0,84460.0,0.59088334]
[1744604316204,0.0008448,84461.0,84460.0,0.69088266]
[1744604316975,0.0008448,84461.0,84460.0,0.68988266]
[1744604317181,0.0008448,84461.0,84460.0,0.69288266]
[1744604317387,0.0018448,84461.0,84460.0,0.69788266]
[1744604317634,0.0018448,84461.0,84460.0,0.69288266]
[1744604317635,0.0008448,84461.0,84460.0,0.69288266]
[1744604317973,0.0018448,84461.0,84460.0,0.69888266]
[1744604318429,0.0018448,84461.0,84460.0,0.69588266]
[1744604318602,0.0018448,84461.0,84460.0,0.69688266]
[1744604318786,0.0018448,84461.0,84460.0,0.70088266]
[1744604319285,8e-07,84463.0,84462.0,0.001]
[1744604319488,8e-07,84463.0,84462.0,0.64364335]
[1744604319834,8e-07,84463.0,84462.0,1.05997644]
[1744604320495,0.0020008,84463.0,84462.0,1.07597644]
[1744604321594,0.0020008,84463.0,84462.0,1.21929644]
[1744604321807,0.0008446,84470.0,84468.0,0.40306017]
[1744604322005,8e-07,84469.0,84468.0,0.94260171]
[1744604322235,8e-07,84469.0,84468.0,0.958694]
[1744604322435,6e-07,84472.0,84471.0,0.50434017]
[1744604322677,6e-07,84472.0,84471.0,0.62518171]
[1744604322837,6e-07,84472.0,84471.0,0.64125689]
[1744604324019,6e-07,84472.0,84471.0,0.64991124]
[1744604324276,2e-07,84473.0,84472.0,0.74305117]
[1744604324445,2e-07,84473.0,84472.0,0.86389271]
[1744604324627,2e-07,84473.0,84472.0,0.87991208]
[1744604325048,2e-07,84473.0,84472.0,0.87891208]
[1744604325448,0.00013943,84473.0,84472.0,0.88491208]
[1744604325672,0.00013943,84473.0,84472.0,1.30361208]
[1744604326069,0.00013943,84473.0,84472.0,1.29761208]
[1744604326286,0.00013943,84473.0,84472.0,1.19761276]
[1744604326434,0.00013943,84473.0,84472.0,1.29761208]
[1744604326884,0.00013943,84473.0,84472.0,1.30961208]
[1744604327136,0.00013943,84473.0,84472.0,1.30261208]
[1744604327325,0.00013943,84473.0,84472.0,1.30761208]
[1744604328473,0.00013943,84473.0,84472.0,1.29307123]
[1744604328848,0.00013943,84473.0,84472.0,1.30761208]
[1744604331267,0.00013943,84473.0,84472.0,1.20761276]
[1744604331483,0.00013943,84473.0,84472.0,1.30761208]
[1744604331712,0.00013943,84473.0,84472.0,1.30861208]
[1744604331977,0.00013943,84473.0,84472.0,1.30761208]
[1744604337551,0.00013943,84473.0,84472.0,1.20761276]
[1744604337750,0.00013943,84473.0,84472.0,1.30761208]
[1744604343420,0.00013943,84473.0,84472.0,1.30861208]
[1744604344632,0.00013943,84473.0,84472.0,1.30761208]
[1744604348407,0.00013943,84473.0,84472.0,1.20761276]
[1744604348631,0.00013943,84473.0,84472.0,1.30761208]
[1744604349744,0.00013943,84473.0,84472.0,1.20761276]
[1744604349977,0.00013943,84473.0,84472.0,1.30761208]
[1744604350180,0.00013943,84473.0,84472.0,1.30861208]
[1744604350478,0.00013943,84473.0,84472.0,1.34154453]
[1744604351877,4.3e-07,84473.0,84472.0,1.34154453]
[1744604352271,4.3e-07,84473.0,84472.0,1.34893933]
[1744604352712,4.3e-07,84473.0,84472.0,1.34393933]
[1744604353095,4.3e-07,84473.0,84472.0,1.34593933]
[1744604353907,4.3e-07,84473.0,84472.0,1.33893933]
[1744604354114,4.3e-07,84473.0,84472.0,1.34393933]
[1744604354530,4.3e-07,84473.0,84472.0,1.35093933]
[1744604355060,4.3e-07,84473.0,84472.0,1.34593933]
[1744604356264,4.3e-07,84473.0,84472.0,1.35093933]
[1744604357742,4.3e-07,84473.0,84472.0,1.30163933]
[1744604359471,4.3e-07,84473.0,84472.0,1.29424453]
[1744604362590,4.3e-07,84473.0,84472.0,1.30163926]
[1744604363356,4.3e-07,84473.0,84472.0,1.29424453]
[1744604369327,0.03874951,84495.0,84494.0,0.20390285]
[1744604369526,0.03874951,84495.0,84494.0,0.34069356]
[1744604370128,0.03756951,84495.0,84494.0,0.34808829]
[1744604370631,0.03856951,84495.0,84494.0,0.34169356]
[1744604372250,0.001,84495.0,84494.0,0.34169356]
[1744604372635,0.001,84495.0,84494.0,0.35340839]
[1744604373242,0.001,84495.0,84494.0,0.3608024]
[1744604373670,0.001,84495.0,84494.0,0.3598024]
[1744604373870,0.000845,84496.0,84495.0,0.01454085]
[1744604374171,0.000845,84496.0,84495.0,0.15872308]
[1744604376266,0.001845,84496.0,84495.0,0.15972308]
[1744604376618,0.001845,84496.0,84495.0,0.16208983]
[1744604378035,0.001845,84496.0,84495.0,0.15972308]
[1744604378232,0.001845,84496.0,84495.0,0.16208975]
[1744604378750,0.001845,84496.0,84495.0,0.15972308]
[1744604379319,0.001845,84496.0,84495.0,0.15872308]
[1744604379518,0.000845,84496.0,84495.0,0.15972308]
[1744604381388,0.000845,84496.0,84495.0,0.16208972]
[1744604381592,0.000845,84496.0,84495.0,0.15972308]
[1744604382280,0.000845,84496.0,84495.0,0.16208956]
[1744604384222,0.000845,84496.0,84495.0,0.15972308]
[1744604384421,0.000845,84496.0,84495.0,0.15872308]
[1744604384840,0.000845,84496.0,84495.0,0.16072308]
[1744604385206,0.000845,84496.0,84495.0,0.15872308]
[1744604385405,0.000845,84496.0,84495.0,0.16072308]
[1744604385807,0.000845,84496.0,84495.0,0.16172308]
[1744604386444,0.000845,84496.0,84495.0,0.16272308]
[1744604388331,0.000845,84496.0,84495.0,0.16508961]
[1744604390167,0.000845,84496.0,84495.0,0.58378961]
[1744604390399,0.000845,84496.0,84495.0,0.58142308]
[1744604394832,0.000845,84496.0,84495.0,0.57402907]
[1744604403786,0.000845,84496.0,84495.0,0.58142308]
[1744604403996,0.000845,84496.0,84495.0,0.56688223]
[1744604403997,0.048545,84496.0,84495.0,0.56688223]
[1744604404543,0.048545,84496.0,84495.0,0.44604069]
[1744604406383,0.048545,84496.0,84495.0,0.44604167]
[1744604407634,0.237903,84496.0,84495.0,0.02734167]
[1744604415540,0.048545,84496.0,84495.0,0.02734167]
[1744604419331,0.048545,84496.0,84495.0,0.01139499]
[1744604419709,0.048545,84496.0,84495.0,0.00739499]
[1744604420114,0.049545,84496.0,84495.0,0.00839499]
[1744604420296,0.048545,84496.0,84495.0,0.00839499]
[1744604420496,0.049545,84496.0,84495.0,0.00839499]
[1744604421457,0.049545,84496.0,84495.0,0.00739499]
[1744604423699,0.011835,84491.0,84486.0,0.011836]
[1744604423904,0.201205,84491.0,84486.0,0.201214]
[1744604424103,0.011835,84490.0,84487.0,0.02776336]
[1744604424445,0.201208,84490.0,84487.0,0.01592736]
[1744604424647,0.201208,84490.0,84488.0,0.0073954]
[1744604425153,0.201208,84490.0,84489.0,0.02332031]
[1744604425348,0.201208,84490.0,84489.0,0.0073954]
[1744604425577,0.201208,84490.0,84489.0,0.02944064]
[1744604425752,0.201208,84490.0,84489.0,0.045387]
[1744604426382,0.201208,84490.0,84489.0,0.046387]
[1744604427986,0.011835,84490.0,84489.0,0.046387]
[1744604429476,0.011835,84490.0,84489.0,0.02434176]
[1744604429678,0.011835,84490.0,84489.0,0.001]
[1744604434240,0.011836,84485.0,84482.0,0.011836]
[1744604434447,0.011836,84485.0,84483.0,0.02340808]
[1744604435122,0.011836,84485.0,84481.0,0.011836]
[1744604435321,0.011836,84485.0,84484.0,0.02341568]
[1744604435525,0.011836,84485.0,84482.0,0.0236745]
[1744604435712,0.011836,84485.0,84484.0,0.02341821]
[1744604435913,0.201219,84485.0,84483.0,0.02341568]
[1744604436266,0.201219,84485.0,84484.0,0.02341821]
[1744604436633,0.201213,84488.0,84484.0,0.02341821]
[1744604436839,0.201213,84488.0,84484.0,0.03525421]
[1744604436840,0.011836,84488.0,84484.0,0.03525421]
[1744604437031,0.011836,84487.0,84484.0,0.03525421]
[1744604437299,0.011836,84487.0,84484.0,0.02341821]
[1744604437493,0.011836,84487.0,84484.0,0.03525421]
[1744604437667,0.011836,84487.0,84484.0,0.03625421]
[1744604437858,0.011836,84487.0,84485.0,0.00739582]
[1744604438241,0.011836,84487.0,84486.0,0.02344472]
[1744604438444,0.201214,84487.0,84486.0,0.03084054]
[1744604439160,0.202214,84487.0,84486.0,0.03084054]
[1744604439491,0.011836,84487.0,84486.0,0.03084054]
[1744604439694,0.201213,84488.0,84486.0,0.03084054]
[1744604440001,0.011836,84488.0,84487.0,0.00739582]
[1744604440160,0.011836,84488.0,84487.0,0.03084561]
[1744604441820,0.011835,84494.0,84489.0,0.201208]
[1744604441995,0.143805,84496.0,84494.0,0.189361]
[1744604442318,0.143805,84496.0,84495.0,0.03086335]
[1744604442721,0.143805,84496.0,84495.0,0.08046335]
[1744604443073,0.147805,84496.0,84495.0,0.08046335]
[1744604443274,0.143805,84496.0,84495.0,0.08046335]
[1744604443727,0.147805,84496.0,84495.0,0.08046335]
[1744604445070,0.147805,84496.0,84495.0,0.20130489]
[1744604445956,0.143805,84496.0,84495.0,0.20130489]
[1744604446473,0.145805,84496.0,84495.0,0.20130489]
[1744604446753,0.143805,84496.0,84495.0,0.20130489]
[1744604446956,0.146805,84496.0,84495.0,0.20130489]
[1744604447923,0.146805,84496.0,84495.0,0.21584574]
[1744604447924,0.003845,84496.0,84495.0,0.21584574]
[1744604448123,0.003845,84496.0,84495.0,0.26681244]
[1744604448349,0.003845,84496.0,84495.0,0.26444574]
[1744604449173,0.000845,84496.0,84495.0,0.26444574]
[1744604449468,0.000845,84496.0,84495.0,0.26944574]
[1744604449646,0.000845,84496.0,84495.0,0.26544574]
[1744604450159,0.000845,84496.0,84495.0,0.26444574]
[1744604450365,0.000845,84496.0,84495.0,0.26644574]
[1744604450509,0.000845,84496.0,84495.0,0.26844574]
[1744604450720,0.000845,84496.0,84495.0,0.27525652]
[1744604451558,0.000845,84496.0,84495.0,0.69695652]
[1744604451965,0.000845,84496.0,84495.0,0.69595652]
[1744604454257,0.000845,84496.0,84495.0,0.22865652]
[1744604454428,0.000845,84496.0,84495.0,0.21984574]
[1744604454603,0.000845,84496.0,84495.0,0.17024574]
[1744604458251,0.000845,84496.0,84495.0,0.21784574]
[1744604461865,0.000845,84496.0,84495.0,0.22021244]
[1744604463339,0.000845,84496.0,84495.0,0.21784574]
[1744604465804,0.000845,84496.0,84495.0,0.22154274]
[1744604466885,0.000845,84496.0,84495.0,0.21784574]
[1744604472111,0.000845,84496.0,84495.0,0.26611234]
[1744604472276,0.000845,84496.0,84495.0,0.26374574]
[1744604475115,0.000845,84496.0,84495.0,0.68244574]
[1744604477116,0.000845,84496.0,84495.0,0.68614257]
[1744604481700,0.000845,84496.0,84495.0,0.68714257]
[1744604482783,0.000845,84496.0,84495.0,0.72010788]
[1744604482987,0.000845,84496.0,84495.0,0.68514257]
[1744604483286,0.000845,84496.0,84495.0,0.68814257]
[1744604483485,0.0008448,84500.0,84499.0,0.25069185]
[1744604483486,8e-07,84500.0,84499.0,0.25069185]
[1744604483690,8e-07,84500.0,84499.0,0.40449659]
[1744604484035,1e-06,84500.0,84499.0,0.47431884]
[1744604484233,1e-06,84500.0,84499.0,0.48171466]
[1744604485177,6e-07,84507.0,84506.0,0.001]
[1744604485410,4e-07,84512.0,84511.0,0.63726485]
[1744604485609,4e-07,84512.0,84511.0,1.35240959]
[1744604485892,4e-07,84512.0,84511.0,1.38288914]
[1744604486665,4e-07,84512.0,84511.0,1.38888914]
[1744604487261,0.0024222,84529.0,84528.0,0.20382685]
[1744604487424,0.00256137,84529.0,84528.0,0.74573397]
[1744604487626,0.00256137,84529.0,84528.0,0.76648378]
[1744604487825,0.00256137,84529.0,84528.0,1.17537145]
[1744604488427,0.0004221,84530.0,84529.0,0.35554085]
[1744604488428,4.7e-07,84530.0,84529.0,0.35554085]
[1744604488598,4.7e-07,84530.0,84529.0,0.52418239]
[1744604488844,4.7e-07,84530.0,84529.0,1.07325517]
[1744604488977,4.7e-07,84530.0,84529.0,1.10611734]
[1744604489550,4.7e-07,84530.0,84529.0,1.07325517]
[1744604490062,4.7e-07,84530.0,84529.0,1.07825517]
[1744604490253,4.7e-07,84530.0,84529.0,1.08225517]
[1744604490706,4.7e-07,84530.0,84529.0,0.98125585]
[1744604490929,4.7e-07,84530.0,84529.0,1.08998129]
[1744604491092,4.7e-07,84530.0,84529.0,1.09098129]
[1744604491293,0.0008448,84557.0,84556.0,0.20376385]
[1744604491493,0.00130862,84557.0,84556.0,0.34880116]
[1744604491725,0.00130862,84557.0,84556.0,0.37902308]
[1744604492109,0.00130862,84557.0,84556.0,0.38777848]
[1744604492605,0.00230862,84557.0,84556.0,0.38777848]
[1744604492771,0.00130862,84557.0,84556.0,0.38777848]
[1744604493432,0.00130862,84557.0,84556.0,0.3934725]
[1744604493927,0.00130862,84557.0,84556.0,0.8101725]
[1744604494079,0.00130862,84557.0,84556.0,0.8141725]
[1744604494691,0.00130862,84557.0,84556.0,0.35673588]
[1744604495320,0.00130862,84557.0,84556.0,0.35604186]
[1744604495519,0.00130862,84557.0,84556.0,0.36758271]
[1744604495697,4.2e-07,84559.0,84558.0,0.54375985]
[1744604495913,0.00013948,84559.0,84558.0,0.74137273]
[1744604496245,0.00013948,84559.0,84558.0,1.16007273]
[1744604496412,0.00013948,84559.0,84558.0,1.16376662]
[1744604496999,0.00013948,84559.0,84558.0,1.16576662]
[1744604497232,0.00013948,84559.0,84558.0,1.16876662]
[1744604500185,8.8e-07,84564.0,84563.0,0.54374885]
[1744604500363,8.8e-07,84564.0,84563.0,0.66459039]
[1744604500533,8.8e-07,84564.0,84563.0,0.68823884]
[1744604500731,8.8e-07,84564.0,84563.0,0.69932855]
[1744604501662,8.8e-07,84564.0,84563.0,0.70232855]
[1744604502133,8.8e-07,84564.0,84563.0,0.69863466]
[1744604502567,8.8e-07,84564.0,84563.0,0.69563466]
[1744604502768,8.8e-07,84564.0,84563.0,0.69863466]
[1744604502972,8.8e-07,84564.0,84563.0,0.70263466]
[1744604503572,8.8e-07,84564.0,84563.0,0.76179381]
[1744604503743,8.8e-07,84564.0,84563.0,0.76579381]
[1744604504500,8.8e-07,84564.0,84563.0,0.76179381]
[1744604504703,8.8e-07,84564.0,84563.0,0.77633466]
[1744604504906,8.8e-07,84564.0,84563.0,1.14939381]
[1744604505110,0.0004223,84580.0,84579.0,0.20371285]
[1744604505334,0.0004223,84580.0,84579.0,0.77182002]
[1744604505572,0.0004223,84580.0,84579.0,1.10945583]
[1744604505750,5e-07,84581.0,84580.0,0.01554085]
[1744604505954,5e-07,84581.0,84580.0,0.14377821]
[1744604506160,9e-07,84594.0,84591.0,0.01454085]
[1744604506359,9e-07,84594.0,84593.0,0.52198239]
[1744604506559,0.00013996,84594.0,84593.0,0.52198239]
[1744604506741,0.00013996,84594.0,84593.0,0.54067229]
[1744604506939,0.0475,84631.0,84609.0,0.011819]
[1744604507184,4e-07,84615.0,84614.0,0.71107639]
[1744604507341,4e-07,84615.0,84614.0,0.71207639]
[1744604507538,4e-07,84619.0,84618.0,0.54462585]
[1744604507760,4e-07,84619.0,84618.0,0.67286321]
[1744604507983,4e-07,84619.0,84618.0,0.69134112]
[1744604508160,0.0024224,84649.0,84641.0,0.20357385]
[1744604508343,0.00088604,84642.0,84641.0,0.32441539]
[1744604508555,0.00088604,84642.0,84641.0,0.34288702]
[1744604510472,0.00088604,84642.0,84641.0,0.34388702]
[1744604510679,0.02,84647.0,84641.0,0.34388702]
[1744604510680,0.01588604,84647.0,84646.0,0.189022]
[1744604510873,0.01602504,84647.0,84646.0,0.189022]
[1744604511222,0.01602504,84647.0,84646.0,0.20749081]
[1744604513858,0.01602504,84647.0,84646.0,0.3428732]
[1744604515032,0.01602504,84647.0,84646.0,0.3438732]
[1744604515995,0.01602504,84647.0,84646.0,0.33671336]
[1744604516197,0.01602504,84647.0,84646.0,0.35125421]
[1744604516884,4.4e-07,84649.0,84648.0,0.54355885]
[1744604517089,4.4e-07,84649.0,84648.0,1.10211835]
[1744604517289,4.4e-07,84649.0,84648.0,1.14871835]
[1744604517496,4.4e-07,84649.0,84648.0,1.15609936]
[1744604518105,4.4e-07,84649.0,84648.0,1.16009936]
[1744604518347,4.4e-07,84649.0,84648.0,1.16609936]
[1744604519049,2e-07,84679.0,84676.0,0.351809]
[1744604519256,0.0475,84715.0,84708.0,0.20342485]
[1744604519455,0.00213898,84709.0,84708.0,0.20342485]
[1744604519657,0.00213898,84709.0,84708.0,0.20676558]
[1744604519836,0.03483898,84709.0,84678.0,0.011809]
[1744604520039,0.03483898,84709.0,84686.0,0.188933]
[1744604520040,0.34,84707.0,84686.0,0.188933]
[1744604520264,0.34,84707.0,84690.0,0.188924]
[1744604520579,0.34,84707.0,84691.0,0.00988102]
[1744604520784,0.34,84707.0,84694.0,0.188915]
[1744604521194,0.34,84707.0,84698.0,0.188905]
[1744604521403,0.34,84707.0,84695.0,0.00988102]
[1744604521539,0.34,84707.0,84701.0,0.188897]
[1744604521744,0.14232,84708.0,84705.0,0.188889]
[1744604521968,0.14232,84708.0,84705.0,0.200694]
[1744604522257,0.00213898,84709.0,84708.0,0.20342485]
[1744604522462,0.00213898,84709.0,84708.0,0.32426639]
[1744604522686,0.00213898,84709.0,84708.0,0.33404024]
[1744604522889,0.00213898,84709.0,84708.0,0.35275657]
[1744604523097,0.00213898,84709.0,84708.0,0.36169138]
[1744604523296,0.00213898,84709.0,84708.0,0.78039138]
[1744604523917,0.00213898,84709.0,84708.0,0.78239138]
[1744604524492,0.00213898,84709.0,84708.0,0.78039138]
[1744604524811,0.00213898,84709.0,84708.0,0.43247385]
[1744604525186,0.00213898,84709.0,84708.0,0.01377385]
[1744604525389,0.19101998,84709.0,84708.0,0.01377385]
[1744604525590,0.00213898,84709.0,84708.0,0.01377385]
[1744604525796,0.00213898,84709.0,84708.0,0.006]
[1744604526002,0.34213898,84709.0,84708.0,0.002]
[1744604526215,0.011805,84703.0,84694.0,0.188913]
[1744604526450,0.011806,84702.0,84695.0,0.020072]
[1744604526654,0.011806,84699.0,84696.0,0.18891]
[1744604526794,0.011806,84700.0,84696.0,0.18891]
[1744604526991,0.188904,84699.0,84697.0,0.00973981]
[1744604527438,0.200725,84693.0,84686.0,0.188932]
[1744604527760,0.200725,84693.0,84687.0,0.00982331]
[1744604528048,0.200731,84690.0,84687.0,0.00982331]
[1744604528451,0.011807,84690.0,84683.0,0.188938]
[1744604528689,0.011808,84687.0,84683.0,0.188938]
[1744604528917,0.011808,84687.0,84684.0,0.00981574]
[1744604529402,0.1422,84695.0,84693.0,0.188916]
[1744604529743,0.1422,84695.0,84694.0,0.00987069]
[1744604530241,0.4165,84704.0,84703.0,0.188895]
[1744604530660,0.4165,84704.0,84703.0,0.19879091]
[1744604531274,0.1422,84708.0,84707.0,0.20342685]
[1744604531644,0.1422,84708.0,84707.0,0.21321028]
[1744604532105,0.011883,84724.0,84708.0,0.01454085]
[1744604532106,0.34,84723.0,84708.0,0.01454085]
[1744604532307,0.011803,84722.0,84708.0,0.13538239]
[1744604532511,0.34,84723.0,84708.0,0.14517086]
[1744604532686,0.011803,84720.0,84708.0,0.14517086]
[1744604532891,0.011803,84721.0,84708.0,0.14517086]
[1744604533260,0.011803,84721.0,84708.0,0.15254717]
[1744604533460,0.011803,84720.0,84708.0,0.15254717]
[1744604533913,0.011803,84718.0,84708.0,0.03170563]
[1744604534123,0.011804,84716.0,84708.0,0.03170563]
[1744604534537,0.011803,84718.0,84708.0,0.03170563]
[1744604534835,0.011804,84717.0,84708.0,0.03170563]
[1744604535650,0.011803,84718.0,84708.0,0.01716478]
[1744604535901,0.34,84710.0,84708.0,0.01716478]
[1744604536035,0.51018052,84709.0,84708.0,0.00978847]
[1744604536244,0.528924,84690.0,84689.0,0.00737631]
[1744604536443,0.528924,84690.0,84676.0,0.430509]
[1744604536444,0.188935,84685.0,84684.0,0.00737631]
[1744604537030,0.011808,84683.0,84680.0,0.188945]
[1744604537581,0.011809,84681.0,84675.0,0.188957]
[1744604537783,0.011809,84678.0,84672.0,0.188963]
[1744604538142,0.011809,84680.0,84674.0,0.188959]
[1744604538343,0.0001389,84678.0,84674.0,0.188959]
[1744604538542,0.011809,84677.0,84673.0,0.0188963]
[1744604538887,0.14216,84676.0,84667.0,0.188974]
[1744604539091,0.01181,84673.0,84661.0,0.188987]
[1744604539288,0.153969,84676.0,84668.0,0.188972]
[1744604539624,0.01181,84674.0,84668.0,0.188972]
[1744604539793,0.01181,84672.0,84668.0,0.188972]
[1744604539991,0.01181,84672.0,84661.0,0.13265254]
[1744604539992,0.011811,84665.0,84659.0,0.188992]
[1744604540196,0.01181,84669.0,84659.0,0.12084154]
[1744604540360,0.01181,84670.0,84665.0,0.188979]
[1744604540997,0.01181,84672.0,84668.0,0.188971]
[1744604541419,0.01181,84671.0,84668.0,0.188971]
[1744604541642,0.01181,84670.0,84665.0,0.188979]
[1744604541986,0.01281,84670.0,84665.0,0.188979]
[1744604542243,0.001,84670.0,84668.0,0.001]
[1744604542443,0.01181,84671.0,84668.0,0.001]
[1744604542619,0.01381,84671.0,84668.0,0.001]
[1744604542821,0.01181,84670.0,84667.0,0.188974]
[1744604543213,0.01181,84671.0,84667.0,0.188974]
[1744604543611,0.01181,84670.0,84665.0,0.188979]
[1744604543822,0.01181,84670.0,84668.0,0.001]
[1744604544227,0.188971,84669.0,84668.0,0.001]
[1744604544424,0.001,84670.0,84668.0,0.001]
[1744604544630,0.01181,84671.0,84668.0,0.001]
[1744604544830,0.002,84670.0,84669.0,0.0065253]
[1744604545175,0.01181,84671.0,84669.0,0.0065253]
[1744604545730,0.01181,84671.0,84665.0,0.188979]
[1744604545731,0.01181,84669.0,84665.0,0.188979]
[1744604545952,0.01181,84670.0,84666.0,0.00652277]
[1744604546157,0.01381,84670.0,84667.0,0.001]
[1744604546373,0.01381,84670.0,84668.0,0.00665048]
[1744604546741,0.528971,84669.0,84668.0,0.00665048]
[1744604546915,0.188977,84666.0,84665.0,0.001]
[1744604548257,0.2008,84661.0,84654.0,0.189004]
[1744604548497,0.14216,84660.0,84654.0,0.189004]
[1744604548648,0.14216,84660.0,84655.0,0.00729827]
[1744604549397,0.011812,84659.0,84655.0,0.00729827]
[1744604550606,0.011812,84658.0,84655.0,0.00729827]
[1744604550805,0.529,84656.0,84655.0,0.00729827]
[1744604551027,0.011813,84650.0,84645.0,0.189023]
[1744604551223,0.011813,84649.0,84643.0,0.189028]
[1744604551576,0.011813,84649.0,84645.0,0.189024]
[1744604551914,0.011813,84649.0,84647.0,0.00731265]
[1744604553371,0.189018,84648.0,84647.0,0.00831265]
[1744604553748,0.011813,84649.0,84647.0,0.00831265]
[1744604554154,0.012813,84649.0,84647.0,0.00831265]
[1744604554358,0.011813,84649.0,84647.0,0.00831265]
[1744604554562,0.011813,84649.0,84647.0,0.00731265]
[1744604554769,0.003,84648.0,84647.0,0.00731265]
[1744604555165,0.011813,84649.0,84647.0,0.00731265]
[1744604555571,0.003,84649.0,84647.0,0.00731265]
[1744604555772,0.200826,84650.0,84647.0,0.00731265]
[1744604555972,0.011813,84650.0,84647.0,0.00731265]
[1744604556189,0.351813,84651.0,84647.0,0.00731265]
[1744604556388,0.351813,84650.0,84647.0,0.00731265]
[1744604557310,0.189015,84649.0,84647.0,0.00731265]
[1744604557487,0.351813,84650.0,84647.0,0.00731265]
[1744604557658,0.011813,84649.0,84646.0,0.0008426]
[1744604557859,0.003,84648.0,84646.0,0.0008426]
[1744604558054,0.18902,84648.0,84647.0,0.00746817]
[1744604558369,0.20383,84649.0,84646.0,0.0008426]
[1744604558571,0.20383,84649.0,84647.0,0.00746872]
[1744604558927,0.20083,84649.0,84647.0,0.00746872]
[1744604559110,0.003,84648.0,84647.0,0.00746872]
[1744604560287,0.011813,84649.0,84647.0,0.00746872]
[1744604560687,0.014813,84649.0,84647.0,0.00746872]
[1744604561260,0.003,84648.0,84647.0,0.00746872]
[1744604561699,0.011813,84649.0,84647.0,0.00746872]
[1744604561910,0.014813,84649.0,84647.0,0.00746872]
[1744604562242,0.011813,84649.0,84647.0,0.00746872]
[1744604562460,0.20083,84649.0,84647.0,0.00746872]
[1744604562859,0.20083,84649.0,84646.0,0.0008426]
[1744604563552,0.003,84648.0,84646.0,0.0008426]
[1744604563750,0.20083,84649.0,84646.0,0.0008426]
[1744604564182,0.20383,84649.0,84646.0,0.0008426]
[1744604564387,0.18902,84647.0,84646.0,0.0008426]
[1744604564703,0.18902,84647.0,84646.0,0.00831008]
[1744604565132,0.33142,84647.0,84646.0,0.00831008]
[1744604565305,0.33142,84647.0,84646.0,0.0008426]
[1744604566640,0.33442,84647.0,84646.0,0.0008426]
[1744604568782,0.19202,84647.0,84646.0,0.0008426]
[1744604570034,0.19202,84647.0,84646.0,0.00836149]
[1744604570268,0.21403902,84647.0,84646.0,0.0008426]
[1744604570413,0.21403902,84647.0,84646.0,0.00837159]
[1744604570610,0.21403902,84647.0,84646.0,0.0008426]
[1744604570843,0.21403902,84647.0,84646.0,0.00837159]
[1744604571047,0.21403902,84647.0,84646.0,0.02058326]
[1744604571249,0.21403902,84647.0,84646.0,0.02811225]
[1744604571867,0.21403902,84647.0,84646.0,0.00837159]
[1744604572047,0.19202,84647.0,84646.0,0.00837159]
[1744604574618,0.19202,84647.0,84646.0,0.0008426]
[1744604575450,0.003,84647.0,84646.0,0.0008426]
[1744604575603,0.19202,84647.0,84646.0,0.0008426]
[1744604575773,0.33442,84647.0,84646.0,0.0083737]
[1744604575970,0.33442,84647.0,84646.0,0.0008426]
[1744604580061,0.79526154,84647.0,84646.0,0.0008426]
[1744604580700,0.84506154,84647.0,84646.0,0.0008426]
[1744604580893,0.84206154,84647.0,84646.0,0.0008426]
[1744604581828,0.84506154,84647.0,84646.0,0.0008426]
[1744604582930,0.84206154,84647.0,84646.0,0.0008426]
[1744604583313,0.84706154,84647.0,84646.0,0.0008426]
[1744604583884,0.85506154,84647.0,84646.0,0.0018426]
[1744604585236,1.00326154,84647.0,84646.0,0.0018426]
[1744604585464,0.576247,84635.0,84634.0,0.0008426]
[1744604585643,0.71188854,84635.0,84634.0,0.0009816]
[1744604585843,0.73395417,84635.0,84634.0,0.0009816]
[1744604586833,0.74095417,84635.0,84634.0,0.0009816]
[1744604587107,0.86168265,84635.0,84634.0,0.0009816]
[1744604587485,0.74095417,84635.0,84634.0,0.0009816]
[1744604587873,0.53710717,84635.0,84634.0,0.0009816]
[1744604588115,0.36906563,84635.0,84634.0,0.1900306]
[1744604588323,0.02906563,84635.0,84634.0,0.0009816]
[1744604588584,0.02906563,84635.0,84634.0,0.05664223]
[1744604589264,0.02306563,84635.0,84634.0,0.05664223]
[1744604589497,0.005,84635.0,84634.0,0.05664223]
[1744604589843,0.004,84635.0,84634.0,0.05664223]
[1744604590048,0.004,84635.0,84634.0,0.05764223]
[1744604590253,0.14244,84638.0,84635.0,0.200862]
[1744604590495,0.14244,84638.0,84637.0,0.189042]
[1744604591002,0.14244,84638.0,84637.0,0.19667696]
[1744604593039,0.14244,84638.0,84637.0,0.19867696]
[1744604593264,0.14244,84638.0,84637.0,0.19767696]
[1744604594815,0.14244,84638.0,84637.0,0.23626681]
[1744604594953,0.14224,84650.0,84648.0,0.189016]
[1744604595153,0.14224,84650.0,84649.0,0.00758647]
[1744604595355,0.154053,84650.0,84646.0,0.189022]
[1744604595590,0.011813,84647.0,84643.0,0.189028]
[1744604595782,0.154053,84650.0,84646.0,0.189021]
[1744604595955,0.14224,84650.0,84646.0,0.189021]
[1744604596296,0.155053,84650.0,84646.0,0.189021]
[1744604596703,0.154053,84650.0,84646.0,0.189021]
[1744604596853,0.158053,84650.0,84646.0,0.189021]
[1744604597259,0.155053,84650.0,84646.0,0.189021]
[1744604597866,0.14324,84650.0,84646.0,0.189021]
[1744604598337,0.011813,84649.0,84644.0,0.189025]
[1744604598876,0.011813,84647.0,84644.0,0.189025]
[1744604599547,0.011813,84649.0,84646.0,0.189022]
[1744604599714,0.011813,84648.0,84644.0,0.189025]
[1744604600256,0.011813,84647.0,84642.0,0.189031]
[1744604600440,0.012813,84647.0,84642.0,0.189031]
[1744604601164,0.011814,84644.0,84638.0,0.18904]
[1744604601438,0.011814,84643.0,84636.0,0.189042]
[1744604601636,0.011814,84643.0,84637.0,0.18904]